Workbook

Sheet H27.4
B1: 行政区別の世帯数と人口
G2: (平成27年 | H2: 4月末日現在)
B4: 校区 | C4: 区名 | D4: 世帯数 | E4: 人口
E5: 男 | F5: 女 | G5: 全体
B6: 腹赤 | C6: 平原 | D6: 338 | E6: 372 | F6: 356 | G6: =SUM(E6:F6) -> 728
C7: 清源寺 | D7: 678 | E7: 805 | F7: 688 | G7: =SUM(E7:F7) -> 1493
C8: 上沖洲 | D8: 308 | E8: 365 | F8: 388 | G8: 753
C9: 腹赤 | D9: 343 | E9: 448 | F9: 496 | G9: 944
C10: 腹赤新町 | D10: 93 | E10: 110 | F10: 116 | G10: 226
C11: 校区合計 | D11: =SUM(D6:D10) -> 1760 | E11: =SUM(E6:E10) -> 2100 | F11: =SUM(F6:F10) -> 2044 | G11: =SUM(G6:G10) -> 4144
B12: 六栄 | C12: 折地 | D12: 192 | E12: 223 | F12: 257 | G12: =SUM(E12:F12) -> 480
C13: 赤崎 | D13: 128 | E13: 169 | F13: 182 | G13: =SUM(E13:F13) -> 351
C14: 高田 | D14: 57 | E14: 83 | F14: 87 | G14: 170
C15: 鷲巣 | D15: 221 | E15: 275 | F15: 270 | G15: 545
C16: 立野 | D16: 175 | E16: 190 | F16: 190 | G16: 380
C17: 向野 | D17: 362 | E17: 432 | F17: 471 | G17: 903
C18: 宮崎 | D18: 146 | E18: 188 | F18: 213 | G18: 401
C19: 赤田 | D19: 100 | E19: 110 | F19: 127 | G19: 237
C20: 葛輪 | D20: 75 | E20: 85 | F20: 99 | G20: 184
C21: 永方 | D21: 107 | E21: 101 | F21: 144 | G21: 245
C22: 塩屋 | D22: 92 | E22: 101 | F22: 117 | G22: 218
C23: 向野北 | D23: 240 | E23: 310 | F23: 189 | G23: 499
C24: 古城 | D24: 251 | E24: 310 | F24: 338 | G24: 648
C25: 校区合計 | D25: =SUM(D12:D24) -> 2146 | E25: =SUM(E12:E24) -> 2577 | F25: =SUM(F12:F24) -> 2684 | G25: =SUM(G12:G24) -> 5261
B26: 清里 | C26: 建浜 | D26: 277 | E26: 361 | F26: 386 | G26: =SUM(E26:F26) -> 747
C27: 駅通 | D27: 125 | E27: 149 | F27: 142 | G27: =SUM(E27:F27) -> 291
C28: 梅田 | D28: 269 | E28: 309 | F28: 333 | G28: 642
C29: 校区合計 | D29: =SUM(D26:D28) -> 671 | E29: =SUM(E26:E28) -> 819 | F29: 861 | G29: =SUM(G26:G28) -> 1680
B30: 長洲 | C30: 出町 | D30: 217 | E30: 234 | F30: 266 | G30: =SUM(E30:F30) -> 500
C31: 新町 | D31: 148 | E31: 173 | F31: 175 | G31: =SUM(E31:F31) -> 348
C32: 西新町 | D32: 37 | E32: 32 | F32: 40 | G32: 72
C33: 宮ノ町 | D33: 125 | E33: 144 | F33: 153 | G33: 297
C34: 松原 | D34: 107 | E34: 109 | F34: 120 | G34: 229
C35: 新山 | D35: 294 | E35: 316 | F35: 361 | G35: 677
C36: 宝町 | D36: 150 | E36: 141 | F36: 154 | G36: 295
C37: 磯町 | D37: 110 | E37: 107 | F37: 128 | G37: 235
C38: 上町 | D38: 70 | E38: 70 | F38: 88 | G38: 158
C39: 中町 | D39: 56 | E39: 64 | F39: 68 | G39: 132
C40: 下本 | D40: 44 | E40: 41 | F40: 58 | G40: 99
C41: 今町 | D41: 47 | E41: 51 | F41: 67 | G41: 118
C42: 下東 | D42: 248 | E42: 296 | F42: 324 | G42: 620
C43: 西荒神 | D43: 67 | E43: 73 | F43: 74 | G43: 147
C44: 東荒神 | D44: 356 | E44: 410 | F44: 452 | G44: 862
C45: 大明神 | D45: 265 | E45: 322 | F45: 331 | G45: 653
C46: 校区合計 | D46: =SUM(D30:D45) -> 2341 | E46: =SUM(E30:E45) -> 2583 | F46: =SUM(F30:F45) -> 2859 | G46: =SUM(G30:G45) -> 5442
B48: 全体 | C48: =D11+D25+D29+D46 -> 6918 | E48: =G11++G25+G29+G46 -> 16527 | G48: =E48-F11-F25-F29-F46 -> 8079 | H48: =E48-E11-E25-E29-E46 -> 8448
D49: （世帯数） | F49: （人口） | G49: （男） | H49: （女）

Sheet H27.5
B1: 行政区別の世帯数と人口
G2: (平成27年 | H2: 5月末日現在)
B4: 校区 | C4: 区名 | D4: 世帯数 | E4: 人口
E5: 男 | F5: 女 | G5: 全体
B6: 腹赤 | C6: 平原 | D6: 342 | E6: 374 | F6: 355 | G6: =SUM(E6:F6) -> 729
C7: 清源寺 | D7: 678 | E7: 805 | F7: 688 | G7: =SUM(E7:F7) -> 1493
C8: 上沖洲 | D8: 306 | E8: 362 | F8: 388 | G8: 750
C9: 腹赤 | D9: 342 | E9: 447 | F9: 492 | G9: 939
C10: 腹赤新町 | D10: 93 | E10: 110 | F10: 115 | G10: 225
C11: 校区合計 | D11: =SUM(D6:D10) -> 1761 | E11: =SUM(E6:E10) -> 2098 | F11: =SUM(F6:F10) -> 2038 | G11: =SUM(G6:G10) -> 4136
B12: 六栄 | C12: 折地 | D12: 192 | E12: 225 | F12: 261 | G12: =SUM(E12:F12) -> 486
C13: 赤崎 | D13: 126 | E13: 165 | F13: 177 | G13: =SUM(E13:F13) -> 342
C14: 高田 | D14: 57 | E14: 82 | F14: 86 | G14: 168
C15: 鷲巣 | D15: 220 | E15: 275 | F15: 269 | G15: 544
C16: 立野 | D16: 176 | E16: 190 | F16: 195 | G16: 385
C17: 向野 | D17: 366 | E17: 437 | F17: 471 | G17: 908
C18: 宮崎 | D18: 147 | E18: 186 | F18: 213 | G18: 399
C19: 赤田 | D19: 101 | E19: 110 | F19: 127 | G19: 237
C20: 葛輪 | D20: 75 | E20: 85 | F20: 99 | G20: 184
C21: 永方 | D21: 107 | E21: 101 | F21: 144 | G21: 245
C22: 塩屋 | D22: 92 | E22: 101 | F22: 117 | G22: 218
C23: 向野北 | D23: 239 | E23: 308 | F23: 186 | G23: 494
C24: 古城 | D24: 251 | E24: 310 | F24: 335 | G24: 645
C25: 校区合計 | D25: =SUM(D12:D24) -> 2149 | E25: =SUM(E12:E24) -> 2575 | F25: =SUM(F12:F24) -> 2680 | G25: =SUM(G12:G24) -> 5255
B26: 清里 | C26: 建浜 | D26: 284 | E26: 364 | F26: 387 | G26: =SUM(E26:F26) -> 751
C27: 駅通 | D27: 125 | E27: 150 | F27: 143 | G27: =SUM(E27:F27) -> 293
C28: 梅田 | D28: 268 | E28: 308 | F28: 333 | G28: 641
C29: 校区合計 | D29: =SUM(D26:D28) -> 677 | E29: =SUM(E26:E28) -> 822 | F29: =SUM(F26:F28) -> 863 | G29: =SUM(G26:G28) -> 1685
B30: 長洲 | C30: 出町 | D30: 217 | E30: 233 | F30: 266 | G30: =SUM(E30:F30) -> 499
C31: 新町 | D31: 147 | E31: 173 | F31: 175 | G31: =SUM(E31:F31) -> 348
C32: 西新町 | D32: 37 | E32: 32 | F32: 40 | G32: 72
C33: 宮ノ町 | D33: 125 | E33: 144 | F33: 151 | G33: 295
C34: 松原 | D34: 108 | E34: 109 | F34: 121 | G34: 230
C35: 新山 | D35: 293 | E35: 316 | F35: 360 | G35: 676
C36: 宝町 | D36: 150 | E36: 141 | F36: 155 | G36: 296
C37: 磯町 | D37: 110 | E37: 107 | F37: 128 | G37: 235
C38: 上町 | D38: 70 | E38: 70 | F38: 88 | G38: 158
C39: 中町 | D39: 56 | E39: 64 | F39: 68 | G39: 132
C40: 下本 | D40: 44 | E40: 41 | F40: 58 | G40: 99
C41: 今町 | D41: 47 | E41: 51 | F41: 67 | G41: 118
C42: 下東 | D42: 248 | E42: 295 | F42: 323 | G42: 618
C43: 西荒神 | D43: 68 | E43: 74 | F43: 74 | G43: 148
C44: 東荒神 | D44: 356 | E44: 407 | F44: 451 | G44: 858
C45: 大明神 | D45: 267 | E45: 324 | F45: 331 | G45: 655
C46: 校区合計 | D46: =SUM(D30:D45) -> 2343 | E46: =SUM(E30:E45) -> 2581 | F46: =SUM(F30:F45) -> 2856 | G46: =SUM(G30:G45) -> 5437
B48: 全体 | C48: =D11+D25+D29+D46 -> 6930 | E48: =G11++G25+G29+G46 -> 16513 | G48: =E48-F11-F25-F29-F46 -> 8076 | H48: =E48-E11-E25-E29-E46 -> 8437
D49: （世帯数） | F49: （人口） | G49: （男） | H49: （女）

Sheet H27.6
B1: 行政区別の世帯数と人口
G2: (平成27年 | H2: 6月末日現在)
B4: 校区 | C4: 区名 | D4: 世帯数 | E4: 人口
E5: 男 | F5: 女 | G5: 全体
B6: 腹赤 | C6: 平原 | D6: 340 | E6: 376 | F6: 357 | G6: =SUM(E6:F6) -> 733
C7: 清源寺 | D7: 673 | E7: 800 | F7: 687 | G7: =SUM(E7:F7) -> 1487
C8: 上沖洲 | D8: 306 | E8: 363 | F8: 388 | G8: 751
C9: 腹赤 | D9: 343 | E9: 449 | F9: 496 | G9: 945
C10: 腹赤新町 | D10: 92 | E10: 110 | F10: 114 | G10: 224
C11: 校区合計 | D11: =SUM(D6:D10) -> 1754 | E11: =SUM(E6:E10) -> 2098 | F11: =SUM(F6:F10) -> 2042 | G11: =SUM(G6:G10) -> 4140
B12: 六栄 | C12: 折地 | D12: 192 | E12: 225 | F12: 260 | G12: =SUM(E12:F12) -> 485
C13: 赤崎 | D13: 126 | E13: 164 | F13: 177 | G13: =SUM(E13:F13) -> 341
C14: 高田 | D14: 57 | E14: 82 | F14: 87 | G14: 169
C15: 鷲巣 | D15: 221 | E15: 275 | F15: 269 | G15: 544
C16: 立野 | D16: 176 | E16: 190 | F16: 192 | G16: 382
C17: 向野 | D17: 368 | E17: 441 | F17: 473 | G17: 914
C18: 宮崎 | D18: 147 | E18: 186 | F18: 214 | G18: 400
C19: 赤田 | D19: 99 | E19: 109 | F19: 125 | G19: 234
C20: 葛輪 | D20: 75 | E20: 85 | F20: 99 | G20: 184
C21: 永方 | D21: 107 | E21: 101 | F21: 144 | G21: 245
C22: 塩屋 | D22: 92 | E22: 99 | F22: 114 | G22: 213
C23: 向野北 | D23: 238 | E23: 307 | F23: 186 | G23: 493
C24: 古城 | D24: 252 | E24: 311 | F24: 335 | G24: 646
C25: 校区合計 | D25: =SUM(D12:D24) -> 2150 | E25: =SUM(E12:E24) -> 2575 | F25: =SUM(F12:F24) -> 2675 | G25: =SUM(G12:G24) -> 5250
B26: 清里 | C26: 建浜 | D26: 284 | E26: 364 | F26: 386 | G26: =SUM(E26:F26) -> 750
C27: 駅通 | D27: 124 | E27: 149 | F27: 143 | G27: =SUM(E27:F27) -> 292
C28: 梅田 | D28: 267 | E28: 307 | F28: 333 | G28: 640
C29: 校区合計 | D29: =SUM(D26:D28) -> 675 | E29: 820 | F29: =SUM(F26:F28) -> 862 | G29: =SUM(G26:G28) -> 1682
B30: 長洲 | C30: 出町 | D30: 217 | E30: 231 | F30: 265 | G30: =SUM(E30:F30) -> 496
C31: 新町 | D31: 147 | E31: 173 | F31: 175 | G31: =SUM(E31:F31) -> 348
C32: 西新町 | D32: 37 | E32: 32 | F32: 40 | G32: 72
C33: 宮ノ町 | D33: 125 | E33: 144 | F33: 150 | G33: 294
C34: 松原 | D34: 108 | E34: 109 | F34: 121 | G34: 230
C35: 新山 | D35: 291 | E35: 312 | F35: 359 | G35: 671
C36: 宝町 | D36: 150 | E36: 140 | F36: 155 | G36: 295
C37: 磯町 | D37: 110 | E37: 106 | F37: 128 | G37: 234
C38: 上町 | D38: 70 | E38: 69 | F38: 88 | G38: 157
C39: 中町 | D39: 56 | E39: 64 | F39: 68 | G39: 132
C40: 下本 | D40: 44 | E40: 41 | F40: 58 | G40: 99
C41: 今町 | D41: 47 | E41: 51 | F41: 67 | G41: 118
C42: 下東 | D42: 249 | E42: 297 | F42: 324 | G42: 621
C43: 西荒神 | D43: 68 | E43: 74 | F43: 74 | G43: 148
C44: 東荒神 | D44: 355 | E44: 407 | F44: 451 | G44: 858
C45: 大明神 | D45: 268 | E45: 325 | F45: 329 | G45: 654
C46: 校区合計 | D46: =SUM(D30:D45) -> 2342 | E46: =SUM(E30:E45) -> 2575 | F46: =SUM(F30:F45) -> 2852 | G46: =SUM(G30:G45) -> 5427
B48: 全体 | C48: =D11+D25+D29+D46 -> 6921 | E48: =G11++G25+G29+G46 -> 16499 | G48: =E48-F11-F25-F29-F46 -> 8068 | H48: =E48-E11-E25-E29-E46 -> 8431
D49: （世帯数） | F49: （人口） | G49: （男） | H49: （女）

Sheet H27.7
B1: 行政区別の世帯数と人口
G2: (平成27年 | H2: 7月末日現在)
B4: 校区 | C4: 区名 | D4: 世帯数 | E4: 人口
E5: 男 | F5: 女 | G5: 全体
B6: 腹赤 | C6: 平原 | D6: 337 | E6: 374 | F6: 355 | G6: =SUM(E6:F6) -> 729
C7: 清源寺 | D7: 672 | E7: 796 | F7: 685 | G7: =SUM(E7:F7) -> 1481
C8: 上沖洲 | D8: 311 | E8: 366 | F8: 388 | G8: 754
C9: 腹赤 | D9: 342 | E9: 447 | F9: 495 | G9: 942
C10: 腹赤新町 | D10: 93 | E10: 112 | F10: 115 | G10: 227
C11: 校区合計 | D11: =SUM(D6:D10) -> 1755 | E11: =SUM(E6:E10) -> 2095 | F11: =SUM(F6:F10) -> 2038 | G11: =SUM(G6:G10) -> 4133
B12: 六栄 | C12: 折地 | D12: 195 | E12: 226 | F12: 261 | G12: =SUM(E12:F12) -> 487
C13: 赤崎 | D13: 126 | E13: 165 | F13: 176 | G13: =SUM(E13:F13) -> 341
C14: 高田 | D14: 57 | E14: 82 | F14: 87 | G14: 169
C15: 鷲巣 | D15: 221 | E15: 275 | F15: 269 | G15: 544
C16: 立野 | D16: 176 | E16: 190 | F16: 192 | G16: 382
C17: 向野 | D17: 371 | E17: 443 | F17: 473 | G17: 916
C18: 宮崎 | D18: 146 | E18: 184 | F18: 213 | G18: 397
C19: 赤田 | D19: 104 | E19: 108 | F19: 131 | G19: 239
C20: 葛輪 | D20: 75 | E20: 85 | F20: 99 | G20: 184
C21: 永方 | D21: 106 | E21: 100 | F21: 144 | G21: 244
C22: 塩屋 | D22: 92 | E22: 99 | F22: 114 | G22: 213
C23: 向野北 | D23: 230 | E23: 300 | F23: 186 | G23: 486
C24: 古城 | D24: 253 | E24: 310 | F24: 334 | G24: 644
C25: 校区合計 | D25: =SUM(D12:D24) -> 2152 | E25: =SUM(E12:E24) -> 2567 | F25: =SUM(F12:F24) -> 2679 | G25: =SUM(G12:G24) -> 5246
B26: 清里 | C26: 建浜 | D26: 284 | E26: 364 | F26: 385 | G26: =SUM(E26:F26) -> 749
C27: 駅通 | D27: 125 | E27: 151 | F27: 145 | G27: =SUM(E27:F27) -> 296
C28: 梅田 | D28: 268 | E28: 306 | F28: 333 | G28: 639
C29: 校区合計 | D29: =SUM(D26:D28) -> 677 | E29: =SUM(E26:E28) -> 821 | F29: =SUM(F26:F28) -> 863 | G29: =SUM(G26:G28) -> 1684
B30: 長洲 | C30: 出町 | D30: 219 | E30: 232 | F30: 264 | G30: =SUM(E30:F30) -> 496
C31: 新町 | D31: 148 | E31: 173 | F31: 175 | G31: =SUM(E31:F31) -> 348
C32: 西新町 | D32: 37 | E32: 32 | F32: 39 | G32: 71
C33: 宮ノ町 | D33: 124 | E33: 143 | F33: 149 | G33: 292
C34: 松原 | D34: 108 | E34: 109 | F34: 121 | G34: 230
C35: 新山 | D35: 291 | E35: 311 | F35: 358 | G35: 669
C36: 宝町 | D36: 149 | E36: 140 | F36: 155 | G36: 295
C37: 磯町 | D37: 110 | E37: 106 | F37: 128 | G37: 234
C38: 上町 | D38: 70 | E38: 68 | F38: 88 | G38: 156
C39: 中町 | D39: 56 | E39: 64 | F39: 68 | G39: 132
C40: 下本 | D40: 45 | E40: 41 | F40: 60 | G40: 101
C41: 今町 | D41: 47 | E41: 51 | F41: 67 | G41: 118
C42: 下東 | D42: 247 | E42: 293 | F42: 319 | G42: 612
C43: 西荒神 | D43: 67 | E43: 74 | F43: 73 | G43: 147
C44: 東荒神 | D44: 352 | E44: 406 | F44: 449 | G44: 855
C45: 大明神 | D45: 268 | E45: 327 | F45: 330 | G45: 657
C46: 校区合計 | D46: =SUM(D30:D45) -> 2338 | E46: =SUM(E30:E45) -> 2570 | F46: =SUM(F30:F45) -> 2843 | G46: =SUM(G30:G45) -> 5413
B48: 全体 | C48: =D11+D25+D29+D46 -> 6922 | E48: =G11++G25+G29+G46 -> 16476 | G48: =E48-F11-F25-F29-F46 -> 8053 | H48: =E48-E11-E25-E29-E46 -> 8423
D49: （世帯数） | F49: （人口） | G49: （男） | H49: （女）

Sheet H27.8
B1: 行政区別の世帯数と人口
G2: (平成27年 | H2: 8月末日現在)
B4: 校区 | C4: 区名 | D4: 世帯数 | E4: 人口
E5: 男 | F5: 女 | G5: 全体
B6: 腹赤 | C6: 平原 | D6: 336 | E6: 371 | F6: 354 | G6: =SUM(E6:F6) -> 725
C7: 清源寺 | D7: 670 | E7: 789 | F7: 686 | G7: =SUM(E7:F7) -> 1475
C8: 上沖洲 | D8: 311 | E8: 365 | F8: 387 | G8: 752
C9: 腹赤 | D9: 338 | E9: 446 | F9: 493 | G9: 939
C10: 腹赤新町 | D10: 93 | E10: 113 | F10: 116 | G10: 229
C11: 校区合計 | D11: =SUM(D6:D10) -> 1748 | E11: =SUM(E6:E10) -> 2084 | F11: =SUM(F6:F10) -> 2036 | G11: =SUM(G6:G10) -> 4120
B12: 六栄 | C12: 折地 | D12: 195 | E12: 225 | F12: 262 | G12: =SUM(E12:F12) -> 487
C13: 赤崎 | D13: 126 | E13: 165 | F13: 174 | G13: =SUM(E13:F13) -> 339
C14: 高田 | D14: 57 | E14: 82 | F14: 87 | G14: 169
C15: 鷲巣 | D15: 220 | E15: 274 | F15: 268 | G15: 542
C16: 立野 | D16: 176 | E16: 190 | F16: 192 | G16: 382
C17: 向野 | D17: 370 | E17: 439 | F17: 470 | G17: 909
C18: 宮崎 | D18: 146 | E18: 184 | F18: 212 | G18: 396
C19: 赤田 | D19: 104 | E19: 108 | F19: 131 | G19: 239
C20: 葛輪 | D20: 75 | E20: 85 | F20: 99 | G20: 184
C21: 永方 | D21: 107 | E21: 104 | F21: 145 | G21: 249
C22: 塩屋 | D22: 92 | E22: 99 | F22: 114 | G22: 213
C23: 向野北 | D23: 229 | E23: 297 | F23: 185 | G23: 482
C24: 古城 | D24: 253 | E24: 311 | F24: 332 | G24: 643
C25: 校区合計 | D25: =SUM(D12:D24) -> 2150 | E25: =SUM(E12:E24) -> 2563 | F25: =SUM(F12:F24) -> 2671 | G25: =SUM(G12:G24) -> 5234
B26: 清里 | C26: 建浜 | D26: 285 | E26: 363 | F26: 385 | G26: =SUM(E26:F26) -> 748
C27: 駅通 | D27: 125 | E27: 151 | F27: 146 | G27: =SUM(E27:F27) -> 297
C28: 梅田 | D28: 269 | E28: 306 | F28: 334 | G28: 640
C29: 校区合計 | D29: =SUM(D26:D28) -> 679 | E29: =SUM(E26:E28) -> 820 | F29: =SUM(F26:F28) -> 865 | G29: =SUM(G26:G28) -> 1685
B30: 長洲 | C30: 出町 | D30: 220 | E30: 234 | F30: 265 | G30: =SUM(E30:F30) -> 499
C31: 新町 | D31: 149 | E31: 174 | F31: 175 | G31: =SUM(E31:F31) -> 349
C32: 西新町 | D32: 36 | E32: 30 | F32: 38 | G32: 68
C33: 宮ノ町 | D33: 127 | E33: 142 | F33: 153 | G33: 295
C34: 松原 | D34: 107 | E34: 109 | F34: 120 | G34: 229
C35: 新山 | D35: 291 | E35: 311 | F35: 357 | G35: 668
C36: 宝町 | D36: 150 | E36: 141 | F36: 156 | G36: 297
C37: 磯町 | D37: 110 | E37: 106 | F37: 128 | G37: 234
C38: 上町 | D38: 69 | E38: 67 | F38: 87 | G38: 154
C39: 中町 | D39: 56 | E39: 64 | F39: 68 | G39: 132
C40: 下本 | D40: 45 | E40: 41 | F40: 60 | G40: 101
C41: 今町 | D41: 47 | E41: 51 | F41: 68 | G41: 119
C42: 下東 | D42: 247 | E42: 293 | F42: 319 | G42: 612
C43: 西荒神 | D43: 67 | E43: 74 | F43: 73 | G43: 147
C44: 東荒神 | D44: 350 | E44: 406 | F44: 451 | G44: 857
C45: 大明神 | D45: 269 | E45: 327 | F45: 331 | G45: 658
C46: 校区合計 | D46: =SUM(D30:D45) -> 2340 | E46: =SUM(E30:E45) -> 2570 | F46: =SUM(F30:F45) -> 2849 | G46: =SUM(G30:G45) -> 5419
B48: 全体 | C48: =D11+D25+D29+D46 -> 6917 | E48: =G11++G25+G29+G46 -> 16458 | G48: =E48-F11-F25-F29-F46 -> 8037 | H48: =E48-E11-E25-E29-E46 -> 8421
D49: （世帯数） | F49: （人口） | G49: （男） | H49: （女）

Sheet H27.9
B1: 行政区別の世帯数と人口
G2: (平成27年 | H2: 9月末日現在)
B4: 校区 | C4: 区名 | D4: 世帯数 | E4: 人口
E5: 男 | F5: 女 | G5: 全体
B6: 腹赤 | C6: 平原 | D6: 336 | E6: 369 | F6: 352 | G6: =SUM(E6:F6) -> 721
C7: 清源寺 | D7: 672 | E7: 792 | F7: 689 | G7: =SUM(E7:F7) -> 1481
C8: 上沖洲 | D8: 311 | E8: 365 | F8: 388 | G8: 753
C9: 腹赤 | D9: 340 | E9: 446 | F9: 495 | G9: 941
C10: 腹赤新町 | D10: 93 | E10: 113 | F10: 116 | G10: 229
C11: 校区合計 | D11: =SUM(D6:D10) -> 1752 | E11: =SUM(E6:E10) -> 2085 | F11: =SUM(F6:F10) -> 2040 | G11: =SUM(G6:G10) -> 4125
B12: 六栄 | C12: 折地 | D12: 194 | E12: 225 | F12: 261 | G12: =SUM(E12:F12) -> 486
C13: 赤崎 | D13: 126 | E13: 165 | F13: 172 | G13: =SUM(E13:F13) -> 337
C14: 高田 | D14: 57 | E14: 82 | F14: 86 | G14: 168
C15: 鷲巣 | D15: 220 | E15: 272 | F15: 267 | G15: 539
C16: 立野 | D16: 177 | E16: 190 | F16: 193 | G16: 383
C17: 向野 | D17: 371 | E17: 438 | F17: 469 | G17: 907
C18: 宮崎 | D18: 147 | E18: 184 | F18: 212 | G18: 396
C19: 赤田 | D19: 104 | E19: 107 | F19: 132 | G19: 239
C20: 葛輪 | D20: 75 | E20: 85 | F20: 99 | G20: 184
C21: 永方 | D21: 108 | E21: 105 | F21: 147 | G21: 252
C22: 塩屋 | D22: 91 | E22: 97 | F22: 113 | G22: 210
C23: 向野北 | D23: 252 | E23: 317 | F23: 187 | G23: 504
C24: 古城 | D24: 252 | E24: 313 | F24: 331 | G24: 644
C25: 校区合計 | D25: =SUM(D12:D24) -> 2174 | E25: 2580 | F25: =SUM(F12:F24) -> 2669 | G25: =SUM(G12:G24) -> 5249
B26: 清里 | C26: 建浜 | D26: 287 | E26: 366 | F26: 386 | G26: =SUM(E26:F26) -> 752
C27: 駅通 | D27: 125 | E27: 150 | F27: 146 | G27: =SUM(E27:F27) -> 296
C28: 梅田 | D28: 269 | E28: 305 | F28: 333 | G28: 638
C29: 校区合計 | D29: =SUM(D26:D28) -> 681 | E29: =SUM(E26:E28) -> 821 | F29: =SUM(F26:F28) -> 865 | G29: =SUM(G26:G28) -> 1686
B30: 長洲 | C30: 出町 | D30: 218 | E30: 233 | F30: 265 | G30: =SUM(E30:F30) -> 498
C31: 新町 | D31: 148 | E31: 173 | F31: 175 | G31: =SUM(E31:F31) -> 348
C32: 西新町 | D32: 36 | E32: 30 | F32: 37 | G32: 67
C33: 宮ノ町 | D33: 127 | E33: 141 | F33: 153 | G33: 294
C34: 松原 | D34: 107 | E34: 109 | F34: 120 | G34: 229
C35: 新山 | D35: 289 | E35: 308 | F35: 354 | G35: 662
C36: 宝町 | D36: 150 | E36: 141 | F36: 157 | G36: 298
C37: 磯町 | D37: 112 | E37: 106 | F37: 132 | G37: 238
C38: 上町 | D38: 69 | E38: 67 | F38: 87 | G38: 154
C39: 中町 | D39: 56 | E39: 64 | F39: 68 | G39: 132
C40: 下本 | D40: 45 | E40: 41 | F40: 60 | G40: 101
C41: 今町 | D41: 47 | E41: 51 | F41: 68 | G41: 119
C42: 下東 | D42: 246 | E42: 295 | F42: 316 | G42: 611
C43: 西荒神 | D43: 67 | E43: 74 | F43: 74 | G43: 148
C44: 東荒神 | D44: 349 | E44: 402 | F44: 448 | G44: 850
C45: 大明神 | D45: 268 | E45: 325 | F45: 332 | G45: 657
C46: 校区合計 | D46: =SUM(D30:D45) -> 2334 | E46: =SUM(E30:E45) -> 2560 | F46: =SUM(F30:F45) -> 2846 | G46: =SUM(G30:G45) -> 5406
B48: 全体 | C48: =D11+D25+D29+D46 -> 6941 | E48: =G11++G25+G29+G46 -> 16466 | G48: =E48-F11-F25-F29-F46 -> 8046 | H48: =E48-E11-E25-E29-E46 -> 8420
D49: （世帯数） | F49: （人口） | G49: （男） | H49: （女）

Sheet H27.10
B1: 行政区別の世帯数と人口
G2: (平成27年 | H2: 10月末日現在)
B4: 校区 | C4: 区名 | D4: 世帯数 | E4: 人口
E5: 男 | F5: 女 | G5: 全体
B6: 腹赤 | C6: 平原 | D6: 334 | E6: 365 | F6: 352 | G6: =SUM(E6:F6) -> 717
C7: 清源寺 | D7: 671 | E7: 792 | F7: 692 | G7: =SUM(E7:F7) -> 1484
C8: 上沖洲 | D8: 312 | E8: 365 | F8: 388 | G8: 753
C9: 腹赤 | D9: 342 | E9: 447 | F9: 497 | G9: 944
C10: 腹赤新町 | D10: 92 | E10: 113 | F10: 114 | G10: 227
C11: 校区合計 | D11: =SUM(D6:D10) -> 1751 | E11: =SUM(E6:E10) -> 2082 | F11: =SUM(F6:F10) -> 2043 | G11: =SUM(G6:G10) -> 4125
B12: 六栄 | C12: 折地 | D12: 193 | E12: 225 | F12: 260 | G12: =SUM(E12:F12) -> 485
C13: 赤崎 | D13: 126 | E13: 165 | F13: 168 | G13: =SUM(E13:F13) -> 333
C14: 高田 | D14: 58 | E14: 83 | F14: 87 | G14: 170
C15: 鷲巣 | D15: 221 | E15: 274 | F15: 265 | G15: 539
C16: 立野 | D16: 177 | E16: 190 | F16: 193 | G16: 383
C17: 向野 | D17: 370 | E17: 437 | F17: 466 | G17: 903
C18: 宮崎 | D18: 146 | E18: 183 | F18: 208 | G18: 391
C19: 赤田 | D19: 103 | E19: 106 | F19: 131 | G19: 237
C20: 葛輪 | D20: 75 | E20: 85 | F20: 98 | G20: 183
C21: 永方 | D21: 106 | E21: 104 | F21: 146 | G21: 250
C22: 塩屋 | D22: 92 | E22: 98 | F22: 114 | G22: 212
C23: 向野北 | D23: 253 | E23: 319 | F23: 188 | G23: 507
C24: 古城 | D24: 250 | E24: 313 | F24: 332 | G24: 645
C25: 校区合計 | D25: =SUM(D12:D24) -> 2170 | E25: =SUM(E12:E24) -> 2582 | F25: =SUM(F12:F24) -> 2656 | G25: =SUM(G12:G24) -> 5238
B26: 清里 | C26: 建浜 | D26: 288 | E26: 366 | F26: 389 | G26: =SUM(E26:F26) -> 755
C27: 駅通 | D27: 125 | E27: 150 | F27: 146 | G27: =SUM(E27:F27) -> 296
C28: 梅田 | D28: 268 | E28: 306 | F28: 331 | G28: 637
C29: 校区合計 | D29: =SUM(D26:D28) -> 681 | E29: =SUM(E26:E28) -> 822 | F29: =SUM(F26:F28) -> 866 | G29: =SUM(G26:G28) -> 1688
B30: 長洲 | C30: 出町 | D30: 217 | E30: 234 | F30: 263 | G30: =SUM(E30:F30) -> 497
C31: 新町 | D31: 148 | E31: 173 | F31: 176 | G31: =SUM(E31:F31) -> 349
C32: 西新町 | D32: 37 | E32: 31 | F32: 38 | G32: 69
C33: 宮ノ町 | D33: 128 | E33: 143 | F33: 155 | G33: 298
C34: 松原 | D34: 106 | E34: 109 | F34: 120 | G34: 229
C35: 新山 | D35: 290 | E35: 311 | F35: 355 | G35: 666
C36: 宝町 | D36: 151 | E36: 141 | F36: 157 | G36: 298
C37: 磯町 | D37: 113 | E37: 108 | F37: 134 | G37: 242
C38: 上町 | D38: 69 | E38: 67 | F38: 87 | G38: 154
C39: 中町 | D39: 57 | E39: 64 | F39: 68 | G39: 132
C40: 下本 | D40: 44 | E40: 40 | F40: 60 | G40: 100
C41: 今町 | D41: 47 | E41: 49 | F41: 68 | G41: 117
C42: 下東 | D42: 247 | E42: 295 | F42: 314 | G42: 609
C43: 西荒神 | D43: 68 | E43: 74 | F43: 75 | G43: 149
C44: 東荒神 | D44: 348 | E44: 400 | F44: 448 | G44: 848
C45: 大明神 | D45: 267 | E45: 323 | F45: 328 | G45: 651
C46: 校区合計 | D46: =SUM(D30:D45) -> 2337 | E46: =SUM(E30:E45) -> 2562 | F46: =SUM(F30:F45) -> 2846 | G46: =SUM(G30:G45) -> 5408
B48: 全体 | C48: =D11+D25+D29+D46 -> 6939 | E48: =G11++G25+G29+G46 -> 16459 | G48: =E48-F11-F25-F29-F46 -> 8048 | H48: =E48-E11-E25-E29-E46 -> 8411
D49: （世帯数） | F49: （人口） | G49: （男） | H49: （女）

Sheet H27.11
B1: 行政区別の世帯数と人口
G2: (平成27年 | H2: 11月末日現在)
B4: 校区 | C4: 区名 | D4: 世帯数 | E4: 人口
E5: 男 | F5: 女 | G5: 全体
B6: 腹赤 | C6: 平原 | D6: 330 | E6: 363 | F6: 349 | G6: =SUM(E6:F6) -> 712
C7: 清源寺 | D7: 666 | E7: 788 | F7: 688 | G7: =SUM(E7:F7) -> 1476
C8: 上沖洲 | D8: 313 | E8: 366 | F8: 389 | G8: 755
C9: 腹赤 | D9: 346 | E9: 449 | F9: 499 | G9: 948
C10: 腹赤新町 | D10: 92 | E10: 113 | F10: 113 | G10: 226
C11: 校区合計 | D11: =SUM(D6:D10) -> 1747 | E11: =SUM(E6:E10) -> 2079 | F11: =SUM(F6:F10) -> 2038 | G11: =SUM(G6:G10) -> 4117
B12: 六栄 | C12: 折地 | D12: 193 | E12: 224 | F12: 260 | G12: =SUM(E12:F12) -> 484
C13: 赤崎 | D13: 125 | E13: 163 | F13: 168 | G13: =SUM(E13:F13) -> 331
C14: 高田 | D14: 58 | E14: 83 | F14: 87 | G14: 170
C15: 鷲巣 | D15: 221 | E15: 273 | F15: 264 | G15: 537
C16: 立野 | D16: 177 | E16: 190 | F16: 193 | G16: 383
C17: 向野 | D17: 372 | E17: 437 | F17: 470 | G17: 907
C18: 宮崎 | D18: 145 | E18: 183 | F18: 206 | G18: 389
C19: 赤田 | D19: 103 | E19: 107 | F19: 131 | G19: 238
C20: 葛輪 | D20: 75 | E20: 85 | F20: 98 | G20: 183
C21: 永方 | D21: 107 | E21: 104 | F21: 147 | G21: 251
C22: 塩屋 | D22: 92 | E22: 98 | F22: 114 | G22: 212
C23: 向野北 | D23: 243 | E23: 308 | F23: 186 | G23: 494
C24: 古城 | D24: 251 | E24: 314 | F24: 331 | G24: 645
C25: 校区合計 | D25: =SUM(D12:D24) -> 2162 | E25: =SUM(E12:E24) -> 2569 | F25: =SUM(F12:F24) -> 2655 | G25: =SUM(G12:G24) -> 5224
B26: 清里 | C26: 建浜 | D26: 286 | E26: 364 | F26: 387 | G26: =SUM(E26:F26) -> 751
C27: 駅通 | D27: 124 | E27: 150 | F27: 145 | G27: =SUM(E27:F27) -> 295
C28: 梅田 | D28: 268 | E28: 305 | F28: 331 | G28: 636
C29: 校区合計 | D29: =SUM(D26:D28) -> 678 | E29: =SUM(E26:E28) -> 819 | F29: =SUM(F26:F28) -> 863 | G29: =SUM(G26:G28) -> 1682
B30: 長洲 | C30: 出町 | D30: 217 | E30: 234 | F30: 263 | G30: =SUM(E30:F30) -> 497
C31: 新町 | D31: 151 | E31: 174 | F31: 176 | G31: =SUM(E31:F31) -> 350
C32: 西新町 | D32: 37 | E32: 31 | F32: 38 | G32: 69
C33: 宮ノ町 | D33: 128 | E33: 143 | F33: 156 | G33: 299
C34: 松原 | D34: 107 | E34: 110 | F34: 119 | G34: 229
C35: 新山 | D35: 291 | E35: 311 | F35: 356 | G35: 667
C36: 宝町 | D36: 151 | E36: 141 | F36: 157 | G36: 298
C37: 磯町 | D37: 112 | E37: 108 | F37: 133 | G37: 241
C38: 上町 | D38: 69 | E38: 67 | F38: 87 | G38: 154
C39: 中町 | D39: 57 | E39: 64 | F39: 67 | G39: 131
C40: 下本 | D40: 44 | E40: 40 | F40: 60 | G40: 100
C41: 今町 | D41: 47 | E41: 49 | F41: 68 | G41: 117
C42: 下東 | D42: 246 | E42: 293 | F42: 317 | G42: 610
C43: 西荒神 | D43: 68 | E43: 74 | F43: 75 | G43: 149
C44: 東荒神 | D44: 354 | E44: 404 | F44: 452 | G44: 856
C45: 大明神 | D45: 267 | E45: 324 | F45: 328 | G45: 652
C46: 校区合計 | D46: =SUM(D30:D45) -> 2346 | E46: =SUM(E30:E45) -> 2567 | F46: =SUM(F30:F45) -> 2852 | G46: =SUM(G30:G45) -> 5419
B48: 全体 | C48: =D11+D25+D29+D46 -> 6933 | E48: =G11++G25+G29+G46 -> 16442 | G48: =E48-F11-F25-F29-F46 -> 8034 | H48: =E48-E11-E25-E29-E46 -> 8408
D49: （世帯数） | F49: （人口） | G49: （男） | H49: （女）

Sheet H27.12
B1: 行政区別の世帯数と人口
G2: (平成27年 | H2: 12月末日現在)
B4: 校区 | C4: 区名 | D4: 世帯数 | E4: 人口
E5: 男 | F5: 女 | G5: 全体
B6: 腹赤 | C6: 平原 | D6: 331 | E6: 365 | F6: 350 | G6: =SUM(E6:F6) -> 715
C7: 清源寺 | D7: 663 | E7: 784 | F7: 691 | G7: =SUM(E7:F7) -> 1475
C8: 上沖洲 | D8: 312 | E8: 364 | F8: 388 | G8: 752
C9: 腹赤 | D9: 349 | E9: 450 | F9: 498 | G9: 948
C10: 腹赤新町 | D10: 91 | E10: 112 | F10: 113 | G10: 225
C11: 校区合計 | D11: =SUM(D6:D10) -> 1746 | E11: =SUM(E6:E10) -> 2075 | F11: =SUM(F6:F10) -> 2040 | G11: =SUM(G6:G10) -> 4115
B12: 六栄 | C12: 折地 | D12: 193 | E12: 222 | F12: 259 | G12: =SUM(E12:F12) -> 481
C13: 赤崎 | D13: 127 | E13: 168 | F13: 170 | G13: =SUM(E13:F13) -> 338
C14: 高田 | D14: 59 | E14: 83 | F14: 87 | G14: 170
C15: 鷲巣 | D15: 222 | E15: 274 | F15: 264 | G15: 538
C16: 立野 | D16: 177 | E16: 189 | F16: 193 | G16: 382
C17: 向野 | D17: 374 | E17: 442 | F17: 470 | G17: 912
C18: 宮崎 | D18: 146 | E18: 184 | F18: 207 | G18: 391
C19: 赤田 | D19: 103 | E19: 106 | F19: 131 | G19: 237
C20: 葛輪 | D20: 75 | E20: 85 | F20: 98 | G20: 183
C21: 永方 | D21: 107 | E21: 104 | F21: 147 | G21: 251
C22: 塩屋 | D22: 92 | E22: 97 | F22: 114 | G22: 211
C23: 向野北 | D23: 242 | E23: 307 | F23: 186 | G23: 493
C24: 古城 | D24: 252 | E24: 315 | F24: 330 | G24: 645
C25: 校区合計 | D25: =SUM(D12:D24) -> 2169 | E25: =SUM(E12:E24) -> 2576 | F25: =SUM(F12:F24) -> 2656 | G25: =SUM(G12:G24) -> 5232
B26: 清里 | C26: 建浜 | D26: 285 | E26: 363 | F26: 386 | G26: =SUM(E26:F26) -> 749
C27: 駅通 | D27: 124 | E27: 149 | F27: 145 | G27: =SUM(E27:F27) -> 294
C28: 梅田 | D28: 268 | E28: 303 | F28: 331 | G28: 634
C29: 校区合計 | D29: =SUM(D26:D28) -> 677 | E29: =SUM(E26:E28) -> 815 | F29: =SUM(F26:F28) -> 862 | G29: =SUM(G26:G28) -> 1677
B30: 長洲 | C30: 出町 | D30: 216 | E30: 234 | F30: 261 | G30: =SUM(E30:F30) -> 495
C31: 新町 | D31: 150 | E31: 173 | F31: 174 | G31: =SUM(E31:F31) -> 347
C32: 西新町 | D32: 37 | E32: 31 | F32: 38 | G32: 69
C33: 宮ノ町 | D33: 128 | E33: 143 | F33: 156 | G33: 299
C34: 松原 | D34: 106 | E34: 110 | F34: 118 | G34: 228
C35: 新山 | D35: 291 | E35: 309 | F35: 355 | G35: 664
C36: 宝町 | D36: 149 | E36: 140 | F36: 156 | G36: 296
C37: 磯町 | D37: 112 | E37: 108 | F37: 133 | G37: 241
C38: 上町 | D38: 71 | E38: 69 | F38: 87 | G38: 156
C39: 中町 | D39: 57 | E39: 64 | F39: 67 | G39: 131
C40: 下本 | D40: 44 | E40: 40 | F40: 60 | G40: 100
C41: 今町 | D41: 47 | E41: 49 | F41: 68 | G41: 117
C42: 下東 | D42: 244 | E42: 294 | F42: 313 | G42: 607
C43: 西荒神 | D43: 68 | E43: 74 | F43: 75 | G43: 149
C44: 東荒神 | D44: 354 | E44: 402 | F44: 454 | G44: 856
C45: 大明神 | D45: 265 | E45: 321 | F45: 326 | G45: 647
C46: 校区合計 | D46: =SUM(D30:D45) -> 2339 | E46: =SUM(E30:E45) -> 2561 | F46: =SUM(F30:F45) -> 2841 | G46: =SUM(G30:G45) -> 5402
B48: 全体 | C48: =D11+D25+D29+D46 -> 6931 | E48: =G11++G25+G29+G46 -> 16426 | G48: =E48-F11-F25-F29-F46 -> 8027 | H48: =E48-E11-E25-E29-E46 -> 8399
D49: （世帯数） | F49: （人口） | G49: （男） | H49: （女）

Sheet H28.1
B1: 行政区別の世帯数と人口
G2: (平成28年 | H2: 1月末日現在)
B4: 校区 | C4: 区名 | D4: 世帯数 | E4: 人口
E5: 男 | F5: 女 | G5: 全体
B6: 腹赤 | C6: 平原 | D6: 336 | E6: 370 | F6: 356 | G6: =SUM(E6:F6) -> 726
C7: 清源寺 | D7: 663 | E7: 786 | F7: 692 | G7: =SUM(E7:F7) -> 1478
C8: 上沖洲 | D8: 311 | E8: 363 | F8: 388 | G8: 751
C9: 腹赤 | D9: 347 | E9: 451 | F9: 497 | G9: 948
C10: 腹赤新町 | D10: 91 | E10: 111 | F10: 113 | G10: 224
C11: 校区合計 | D11: =SUM(D6:D10) -> 1748 | E11: =SUM(E6:E10) -> 2081 | F11: =SUM(F6:F10) -> 2046 | G11: =SUM(G6:G10) -> 4127
B12: 六栄 | C12: 折地 | D12: 193 | E12: 223 | F12: 262 | G12: =SUM(E12:F12) -> 485
C13: 赤崎 | D13: 126 | E13: 168 | F13: 169 | G13: =SUM(E13:F13) -> 337
C14: 高田 | D14: 59 | E14: 83 | F14: 87 | G14: 170
C15: 鷲巣 | D15: 222 | E15: 274 | F15: 264 | G15: 538
C16: 立野 | D16: 177 | E16: 189 | F16: 193 | G16: 382
C17: 向野 | D17: 377 | E17: 445 | F17: 473 | G17: 918
C18: 宮崎 | D18: 146 | E18: 184 | F18: 207 | G18: 391
C19: 赤田 | D19: 103 | E19: 106 | F19: 131 | G19: 237
C20: 葛輪 | D20: 75 | E20: 84 | F20: 98 | G20: 182
C21: 永方 | D21: 107 | E21: 104 | F21: 148 | G21: 252
C22: 塩屋 | D22: 95 | E22: 96 | F22: 116 | G22: 212
C23: 向野北 | D23: 250 | E23: 309 | F23: 184 | G23: 493
C24: 古城 | D24: 253 | E24: 316 | F24: 331 | G24: 647
C25: 校区合計 | D25: =SUM(D12:D24) -> 2183 | E25: =SUM(E12:E24) -> 2581 | F25: =SUM(F12:F24) -> 2663 | G25: =SUM(G12:G24) -> 5244
B26: 清里 | C26: 建浜 | D26: 284 | E26: 362 | F26: 385 | G26: =SUM(E26:F26) -> 747
C27: 駅通 | D27: 122 | E27: 147 | F27: 145 | G27: =SUM(E27:F27) -> 292
C28: 梅田 | D28: 270 | E28: 304 | F28: 332 | G28: 636
C29: 校区合計 | D29: =SUM(D26:D28) -> 676 | E29: =SUM(E26:E28) -> 813 | F29: =SUM(F26:F28) -> 862 | G29: =SUM(G26:G28) -> 1675
B30: 長洲 | C30: 出町 | D30: 218 | E30: 240 | F30: 261 | G30: =SUM(E30:F30) -> 501
C31: 新町 | D31: 150 | E31: 172 | F31: 172 | G31: =SUM(E31:F31) -> 344
C32: 西新町 | D32: 37 | E32: 31 | F32: 37 | G32: 68
C33: 宮ノ町 | D33: 128 | E33: 142 | F33: 155 | G33: 297
C34: 松原 | D34: 104 | E34: 109 | F34: 116 | G34: 225
C35: 新山 | D35: 292 | E35: 310 | F35: 355 | G35: 665
C36: 宝町 | D36: 149 | E36: 140 | F36: 156 | G36: 296
C37: 磯町 | D37: 112 | E37: 108 | F37: 133 | G37: 241
C38: 上町 | D38: 70 | E38: 69 | F38: 86 | G38: 155
C39: 中町 | D39: 57 | E39: 64 | F39: 67 | G39: 131
C40: 下本 | D40: 44 | E40: 40 | F40: 60 | G40: 100
C41: 今町 | D41: 47 | E41: 49 | F41: 68 | G41: 117
C42: 下東 | D42: 241 | E42: 290 | F42: 307 | G42: 597
C43: 西荒神 | D43: 68 | E43: 74 | F43: 75 | G43: 149
C44: 東荒神 | D44: 350 | E44: 401 | F44: 451 | G44: 852
C45: 大明神 | D45: 265 | E45: 321 | F45: 325 | G45: 646
C46: 校区合計 | D46: =SUM(D30:D45) -> 2332 | E46: =SUM(E30:E45) -> 2560 | F46: =SUM(F30:F45) -> 2824 | G46: =SUM(G30:G45) -> 5384
B48: 全体 | C48: =D11+D25+D29+D46 -> 6939 | E48: =G11++G25+G29+G46 -> 16430 | G48: =E48-F11-F25-F29-F46 -> 8035 | H48: =E48-E11-E25-E29-E46 -> 8395
D49: （世帯数） | F49: （人口） | G49: （男） | H49: （女）

Sheet H28.2
B1: 行政区別の世帯数と人口
G2: (平成28年 | H2: 2月末日現在)
B4: 校区 | C4: 区名 | D4: 世帯数 | E4: 人口
E5: 男 | F5: 女 | G5: 全体
B6: 腹赤 | C6: 平原 | D6: 335 | E6: 366 | F6: 355 | G6: =SUM(E6:F6) -> 721
C7: 清源寺 | D7: 665 | E7: 787 | F7: 698 | G7: =SUM(E7:F7) -> 1485
C8: 上沖洲 | D8: 309 | E8: 360 | F8: 386 | G8: 746
C9: 腹赤 | D9: 348 | E9: 452 | F9: 496 | G9: 948
C10: 腹赤新町 | D10: 91 | E10: 111 | F10: 113 | G10: 224
C11: 校区合計 | D11: =SUM(D6:D10) -> 1748 | E11: =SUM(E6:E10) -> 2076 | F11: =SUM(F6:F10) -> 2048 | G11: =SUM(G6:G10) -> 4124
B12: 六栄 | C12: 折地 | D12: 194 | E12: 223 | F12: 263 | G12: =SUM(E12:F12) -> 486
C13: 赤崎 | D13: 126 | E13: 168 | F13: 169 | G13: =SUM(E13:F13) -> 337
C14: 高田 | D14: 59 | E14: 83 | F14: 87 | G14: 170
C15: 鷲巣 | D15: 221 | E15: 276 | F15: 263 | G15: 539
C16: 立野 | D16: 177 | E16: 189 | F16: 193 | G16: 382
C17: 向野 | D17: 374 | E17: 440 | F17: 468 | G17: 908
C18: 宮崎 | D18: 146 | E18: 184 | F18: 207 | G18: 391
C19: 赤田 | D19: 104 | E19: 106 | F19: 132 | G19: 238
C20: 葛輪 | D20: 75 | E20: 84 | F20: 98 | G20: 182
C21: 永方 | D21: 106 | E21: 103 | F21: 147 | G21: 250
C22: 塩屋 | D22: 95 | E22: 96 | F22: 115 | G22: 211
C23: 向野北 | D23: 250 | E23: 310 | F23: 184 | G23: 494
C24: 古城 | D24: 251 | E24: 318 | F24: 326 | G24: 644
C25: 校区合計 | D25: =SUM(D12:D24) -> 2178 | E25: =SUM(E12:E24) -> 2580 | F25: =SUM(F12:F24) -> 2652 | G25: =SUM(G12:G24) -> 5232
B26: 清里 | C26: 建浜 | D26: 284 | E26: 360 | F26: 385 | G26: =SUM(E26:F26) -> 745
C27: 駅通 | D27: 122 | E27: 147 | F27: 144 | G27: =SUM(E27:F27) -> 291
C28: 梅田 | D28: 272 | E28: 307 | F28: 334 | G28: 641
C29: 校区合計 | D29: =SUM(D26:D28) -> 678 | E29: =SUM(E26:E28) -> 814 | F29: =SUM(F26:F28) -> 863 | G29: =SUM(G26:G28) -> 1677
B30: 長洲 | C30: 出町 | D30: 218 | E30: 240 | F30: 263 | G30: =SUM(E30:F30) -> 503
C31: 新町 | D31: 150 | E31: 172 | F31: 169 | G31: =SUM(E31:F31) -> 341
C32: 西新町 | D32: 36 | E32: 30 | F32: 37 | G32: 67
C33: 宮ノ町 | D33: 127 | E33: 141 | F33: 155 | G33: 296
C34: 松原 | D34: 104 | E34: 109 | F34: 116 | G34: 225
C35: 新山 | D35: 291 | E35: 309 | F35: 353 | G35: 662
C36: 宝町 | D36: 148 | E36: 141 | F36: 156 | G36: 297
C37: 磯町 | D37: 112 | E37: 108 | F37: 132 | G37: 240
C38: 上町 | D38: 70 | E38: 68 | F38: 85 | G38: 153
C39: 中町 | D39: 57 | E39: 63 | F39: 69 | G39: 132
C40: 下本 | D40: 44 | E40: 40 | F40: 60 | G40: 100
C41: 今町 | D41: 48 | E41: 50 | F41: 71 | G41: 121
C42: 下東 | D42: 241 | E42: 289 | F42: 307 | G42: 596
C43: 西荒神 | D43: 67 | E43: 73 | F43: 75 | G43: 148
C44: 東荒神 | D44: 349 | E44: 399 | F44: 447 | G44: 846
C45: 大明神 | D45: 264 | E45: 320 | F45: 322 | G45: 642
C46: 校区合計 | D46: =SUM(D30:D45) -> 2326 | E46: =SUM(E30:E45) -> 2552 | F46: =SUM(F30:F45) -> 2817 | G46: =SUM(G30:G45) -> 5369
B48: 全体 | C48: =D11+D25+D29+D46 -> 6930 | E48: =G11++G25+G29+G46 -> 16402 | G48: =E48-F11-F25-F29-F46 -> 8022 | H48: =E48-E11-E25-E29-E46 -> 8380
D49: （世帯数） | F49: （人口） | G49: （男） | H49: （女）

Sheet H28.3
B1: 行政区別の世帯数と人口
G2: (平成28年 | H2: 3月末日現在)
B4: 校区 | C4: 区名 | D4: 世帯数 | E4: 人口
E5: 男 | F5: 女 | G5: 全体
B6: 腹赤 | C6: 平原 | D6: 336 | E6: 365 | F6: 354 | G6: =SUM(E6:F6) -> 719
C7: 清源寺 | D7: 673 | E7: 794 | F7: 699 | G7: =SUM(E7:F7) -> 1493
C8: 上沖洲 | D8: 310 | E8: 357 | F8: 385 | G8: 742
C9: 腹赤 | D9: 346 | E9: 443 | F9: 489 | G9: 932
C10: 腹赤新町 | D10: 91 | E10: 109 | F10: 113 | G10: 222
C11: 校区合計 | D11: =SUM(D6:D10) -> 1756 | E11: =SUM(E6:E10) -> 2068 | F11: =SUM(F6:F10) -> 2040 | G11: =SUM(G6:G10) -> 4108
B12: 六栄 | C12: 折地 | D12: 192 | E12: 221 | F12: 263 | G12: =SUM(E12:F12) -> 484
C13: 赤崎 | D13: 126 | E13: 167 | F13: 169 | G13: =SUM(E13:F13) -> 336
C14: 高田 | D14: 59 | E14: 81 | F14: 87 | G14: 168
C15: 鷲巣 | D15: 220 | E15: 274 | F15: 262 | G15: 536
C16: 立野 | D16: 176 | E16: 187 | F16: 192 | G16: 379
C17: 向野 | D17: 375 | E17: 433 | F17: 473 | G17: 906
C18: 宮崎 | D18: 145 | E18: 176 | F18: 203 | G18: 379
C19: 赤田 | D19: 103 | E19: 105 | F19: 130 | G19: 235
C20: 葛輪 | D20: 73 | E20: 83 | F20: 98 | G20: 181
C21: 永方 | D21: 106 | E21: 103 | F21: 147 | G21: 250
C22: 塩屋 | D22: 94 | E22: 94 | F22: 115 | G22: 209
C23: 向野北 | D23: 246 | E23: 300 | F23: 178 | G23: 478
C24: 古城 | D24: 254 | E24: 323 | F24: 326 | G24: 649
C25: 校区合計 | D25: =SUM(D12:D24) -> 2169 | E25: =SUM(E12:E24) -> 2547 | F25: 2643 | G25: =SUM(G12:G24) -> 5190
B26: 清里 | C26: 建浜 | D26: 283 | E26: 356 | F26: 382 | G26: =SUM(E26:F26) -> 738
C27: 駅通 | D27: 122 | E27: 148 | F27: 140 | G27: =SUM(E27:F27) -> 288
C28: 梅田 | D28: 272 | E28: 305 | F28: 333 | G28: 638
C29: 校区合計 | D29: =SUM(D26:D28) -> 677 | E29: =SUM(E26:E28) -> 809 | F29: =SUM(F26:F28) -> 855 | G29: =SUM(G26:G28) -> 1664
B30: 長洲 | C30: 出町 | D30: 221 | E30: 242 | F30: 261 | G30: =SUM(E30:F30) -> 503
C31: 新町 | D31: 149 | E31: 172 | F31: 167 | G31: =SUM(E31:F31) -> 339
C32: 西新町 | D32: 36 | E32: 30 | F32: 35 | G32: 65
C33: 宮ノ町 | D33: 128 | E33: 148 | F33: 157 | G33: 305
C34: 松原 | D34: 102 | E34: 108 | F34: 112 | G34: 220
C35: 新山 | D35: 294 | E35: 311 | F35: 355 | G35: 666
C36: 宝町 | D36: 148 | E36: 141 | F36: 156 | G36: 297
C37: 磯町 | D37: 112 | E37: 108 | F37: 129 | G37: 237
C38: 上町 | D38: 70 | E38: 69 | F38: 85 | G38: 154
C39: 中町 | D39: 57 | E39: 62 | F39: 69 | G39: 131
C40: 下本 | D40: 43 | E40: 39 | F40: 59 | G40: 98
C41: 今町 | D41: 49 | E41: 51 | F41: 72 | G41: 123
C42: 下東 | D42: 241 | E42: 289 | F42: 304 | G42: 593
C43: 西荒神 | D43: 65 | E43: 73 | F43: 73 | G43: 146
C44: 東荒神 | D44: 350 | E44: 396 | F44: 457 | G44: 853
C45: 大明神 | D45: 265 | E45: 320 | F45: 324 | G45: 644
C46: 校区合計 | D46: =SUM(D30:D45) -> 2330 | E46: =SUM(E30:E45) -> 2559 | F46: =SUM(F30:F45) -> 2815 | G46: =SUM(G30:G45) -> 5374
B48: 全体 | C48: =D11+D25+D29+D46 -> 6932 | E48: =G11++G25+G29+G46 -> 16336 | G48: =E48-F11-F25-F29-F46 -> 7983 | H48: =E48-E11-E25-E29-E46 -> 8353
D49: （世帯数） | F49: （人口） | G49: （男） | H49: （女）
